[Event "Gibraltar Masters 18th"]
[Site "Gibraltar"]
[Date "2020.01.24"]
[Round "4.18"]
[White "Moroni, Luca Jr"]
[Black "Yilmaz, Mustafa"]
[Result "1/2-1/2"]
[ECO "A28"]
[WhiteElo "2532"]
[BlackElo "2607"]
[PlyCount "61"]
[EventDate "2020.01.21"]
[EventType "swiss"]
[EventRounds "10"]
[EventCountry "GGB"]
[SourceTitle "BritBase"]
[Source "John Saunders"]
[SourceDate "2021.06.05"]
[SourceVersion "1"]
[SourceVersionDate "2021.06.05"]
[SourceQuality "1"]
[TimeControl "40/100:0"]
[WhiteClock "0:20:28"]
[BlackClock "0:23:33"]

1. c4 {[%emt 0:00:00]} e5 {[%emt 0:00:00]} 2. Nc3 {[%emt 0:00:00]} Nf6 {
[%emt 0:00:00]} 3. Nf3 {[%emt 0:00:00]} Nc6 {[%emt 0:00:00]} 4. e3 {[%emt 0:00:
00]} Bb4 {[%emt 0:00:00]} 5. Qc2 {[%emt 0:00:00]} Bxc3 {[%emt 0:00:00]} 6. bxc3
{[%emt 0:00:00]} d6 {[%emt 0:00:00]} 7. d3 {[%emt 0:00:00]} O-O {[%emt 0:00:00]
} 8. e4 {[%emt 0:00:00]} Nd7 {[%emt 0:00:00]} 9. Be3 {[%emt 0:00:00]} Qe7 {
[%emt 0:00:00]} 10. g3 {[%emt 0:00:00]} Nc5 {[%emt 0:00:00]} 11. Nh4 {[%emt 0:
00:00]} a6 {[%emt 0:00:00]} 12. Bg2 {[%emt 0:00:00]} b5 {[%emt 0:00:00]} 13.
O-O {[%emt 0:00:00]} Bd7 {[%emt 0:00:00]} 14. d4 {[%emt 0:00:00]} Na4 {[%emt 0:
00:00]} 15. cxb5 {[%emt 0:00:00]} axb5 {[%emt 0:00:00]} 16. f4 {[%emt 0:00:00]}
Na5 {[%emt 0:00:00]} 17. fxe5 {[%emt 0:00:00]} dxe5 {[%emt 0:00:00]} 18. Nf5 {
[%emt 0:00:00]} Qe8 {[%emt 0:00:00]} 19. dxe5 {[%emt 0:00:00]} Nc4 {[%emt 0:00:
00]} 20. Bf4 {[%emt 0:00:00]} Nxe5 {[%emt 0:00:00]} 21. Rad1 {[%emt 0:00:00]}
Nb6 {[%emt 0:00:00]} 22. Qf2 {[%emt 0:00:00]} f6 {[%emt 0:00:00]} 23. Qc5 {
[%emt 0:00:00]} Nbc4 {[%emt 0:00:00]} 24. Qxc7 {[%emt 0:00:00]} Rxa2 {[%emt 0:
00:00]} 25. Nd6 {[%emt 0:00:00]} Nxd6 {[%emt 0:00:00]} 26. Qxd6 {[%emt 0:00:00]
} Bg4 {[%emt 0:00:00]} 27. Bxe5 {[%emt 0:00:00]} Qxe5 {[%emt 0:00:00]} 28. Qxe5
{[%emt 0:00:00]} fxe5 {[%emt 0:00:00]} 29. Rxf8+ {[%emt 0:00:00]} Kxf8 {
[%emt 0:00:00]} 30. Rd5 {[%emt 0:00:00]} Ra1+ {[%emt 0:00:00]} 31. Kf2 {
[%emt 0:00:00]} 1/2-1/2

[Event "Gibraltar Masters 18th"]
[Site "Gibraltar"]
[Date "2020.01.24"]
[Round "4.19"]
[White "Karthikeyan, Murali"]
[Black "Sardana, Rishi"]
[Result "1/2-1/2"]
[ECO "B90"]
[WhiteElo "2606"]
[BlackElo "2437"]
[PlyCount "113"]
[EventDate "2020.01.21"]
[EventType "swiss"]
[EventRounds "10"]
[EventCountry "GGB"]
[SourceTitle "BritBase"]
[Source "John Saunders"]
[SourceDate "2021.06.05"]
[SourceVersion "1"]
[SourceVersionDate "2021.06.05"]
[SourceQuality "1"]
[TimeControl "40/100:0"]
[WhiteClock "0:05:09"]
[BlackClock "0:26:58"]

1. e4 {[%emt 0:00:00]} c5 {[%emt 0:00:00]} 2. Nf3 {[%emt 0:00:00]} d6 {[%emt 0:
00:00]} 3. d4 {[%emt 0:00:00]} cxd4 {[%emt 0:00:00]} 4. Nxd4 {[%emt 0:00:00]}
Nf6 {[%emt 0:00:00]} 5. Nc3 {[%emt 0:00:00]} a6 {[%emt 0:00:00]} 6. h3 {
[%emt 0:00:00]} Nc6 {[%emt 0:00:00]} 7. g4 {[%emt 0:00:00]} g6 {[%emt 0:00:00]}
8. Be3 {[%emt 0:00:00]} Nxd4 {[%emt 0:00:00]} 9. Qxd4 {[%emt 0:00:00]} Bg7 {
[%emt 0:00:00]} 10. Qb4 {[%emt 0:00:00]} O-O {[%emt 0:00:00]} 11. O-O-O {
[%emt 0:00:00]} b5 {[%emt 0:00:00]} 12. e5 {[%emt 0:00:00]} Ne8 {[%emt 0:00:00]
} 13. Bg2 {[%emt 0:00:00]} Rb8 {[%emt 0:00:00]} 14. Ba7 {[%emt 0:00:00]} a5 {
[%emt 0:00:00]} 15. Qd4 {[%emt 0:00:00]} Bb7 {[%emt 0:00:00]} 16. Bxb8 {
[%emt 0:00:00]} Bxg2 {[%emt 0:00:00]} 17. Qa7 {[%emt 0:00:00]} Bxh1 {[%emt 0:
00:00]} 18. Rxh1 {[%emt 0:00:00]} Bxe5 {[%emt 0:00:00]} 19. Nd5 {[%emt 0:00:00]
} e6 {[%emt 0:00:00]} 20. Ne7+ {[%emt 0:00:00]} Kh8 {[%emt 0:00:00]} 21. Kb1 {
[%emt 0:00:00]} Bg7 {[%emt 0:00:00]} 22. g5 {[%emt 0:00:00]} f6 {[%emt 0:00:00]
} 23. Re1 {[%emt 0:00:00]} e5 {[%emt 0:00:00]} 24. gxf6 {[%emt 0:00:00]} Bxf6 {
[%emt 0:00:00]} 25. Nc6 {[%emt 0:00:00]} Qc8 {[%emt 0:00:00]} 26. Qb6 {[%emt 0:
00:00]} Qxh3 {[%emt 0:00:00]} 27. Qxb5 {[%emt 0:00:00]} Qd7 {[%emt 0:00:00]}
28. a4 {[%emt 0:00:00]} Ng7 {[%emt 0:00:00]} 29. Rd1 {[%emt 0:00:00]} Nf5 {
[%emt 0:00:00]} 30. Bxd6 {[%emt 0:00:00]} Nxd6 {[%emt 0:00:00]} 31. Qc5 {
[%emt 0:00:00]} e4 {[%emt 0:00:00]} 32. Rxd6 {[%emt 0:00:00]} Qb7 {[%emt 0:00:
00]} 33. c3 {[%emt 0:00:00]} Bg7 {[%emt 0:00:00]} 34. Nxa5 {[%emt 0:00:00]} Qf7
{[%emt 0:00:00]} 35. Nc6 {[%emt 0:00:00]} Qf3 {[%emt 0:00:00]} 36. a5 {[%emt 0:
00:00]} Qe2 {[%emt 0:00:00]} 37. Ka2 {[%emt 0:00:00]} Qc2 {[%emt 0:00:00]} 38.
Rd7 {[%emt 0:00:00]} Qa4+ {[%emt 0:00:29]} 39. Kb1 {[%emt 0:00:00]} e3 {
[%emt 0:00:30]} 40. Qe7 {[%emt 0:00:00]} Rg8 {[%emt 0:00:00]} 41. Nd8 {[%emt 0:
00:00]} h6 {[%emt 0:00:00]} 42. fxe3 {[%emt 0:00:00]} Qxa5 {[%emt 0:00:00]} 43.
Nf7+ {[%emt 0:00:00]} Kh7 {[%emt 0:00:00]} 44. Nd6 {[%emt 0:00:00]} Qa6 {
[%emt 0:00:00]} 45. Ne8 {[%emt 0:00:00]} Qf1+ {[%emt 0:00:00]} 46. Kc2 {
[%emt 0:00:00]} Qe2+ {[%emt 0:00:00]} 47. Kb1 {[%emt 0:00:00]} Qf1+ {[%emt 0:
00:00]} 48. Kc2 {[%emt 0:00:00]} Qe2+ {[%emt 0:00:00]} 49. Rd2 {[%emt 0:00:00]}
Qa6 {[%emt 0:00:00]} 50. Qd7 {[%emt 0:00:00]} Kh8 {[%emt 0:00:00]} 51. e4 {
[%emt 0:00:00]} Qa8 {[%emt 0:00:00]} 52. Nd6 {[%emt 0:00:00]} Rb8 {[%emt 0:00:
00]} 53. Nf7+ {[%emt 0:00:00]} Kh7 {[%emt 0:00:00]} 54. Ng5+ {[%emt 0:00:00]}
Kh8 {[%emt 0:00:00]} 55. Nf7+ {[%emt 0:00:00]} Kh7 {[%emt 0:00:00]} 56. Ng5+ {
[%emt 0:00:22]} Kh8 {[%emt 0:00:00]} 57. Nf7+ {[%emt 0:00:00]} 1/2-1/2

[Event "Gibraltar Masters 18th"]
[Site "Gibraltar"]
[Date "2020.01.24"]
[Round "4.20"]
[White "Kozak, Adam"]
[Black "Pichot, Alan"]
[Result "1/2-1/2"]
[ECO "D39"]
[WhiteElo "2523"]
[BlackElo "2606"]
[PlyCount "69"]
[EventDate "2020.01.21"]
[EventType "swiss"]
[EventRounds "10"]
[EventCountry "GGB"]
[SourceTitle "BritBase"]
[Source "John Saunders"]
[SourceDate "2021.06.05"]
[SourceVersion "1"]
[SourceVersionDate "2021.06.05"]
[SourceQuality "1"]
[TimeControl "40/100:0"]
[WhiteClock "0:21:10"]
[BlackClock "0:22:08"]

1. d4 {[%emt 0:00:00]} d5 {[%emt 0:00:00]} 2. c4 {[%emt 0:00:00]} e6 {[%emt 0:
00:00]} 3. Nc3 {[%emt 0:00:00]} Bb4 {[%emt 0:00:00]} 4. Nf3 {[%emt 0:00:00]}
Nf6 {[%emt 0:00:00]} 5. Qa4+ {[%emt 0:00:00]} Nc6 {[%emt 0:00:00]} 6. Bg5 {
[%emt 0:00:00]} dxc4 {[%emt 0:00:00]} 7. e4 {[%emt 0:00:00]} h6 {[%emt 0:00:00]
} 8. Bxf6 {[%emt 0:00:00]} Qxf6 {[%emt 0:00:00]} 9. Bxc4 {[%emt 0:00:00]} Bxc3+
{[%emt 0:00:00]} 10. bxc3 {[%emt 0:00:00]} Bd7 {[%emt 0:00:00]} 11. Bb5 {
[%emt 0:00:00]} a6 {[%emt 0:00:00]} 12. O-O {[%emt 0:00:00]} O-O {[%emt 0:00:
00]} 13. Bxc6 {[%emt 0:00:00]} Bxc6 {[%emt 0:00:00]} 14. Qc2 {[%emt 0:00:00]}
Rfd8 {[%emt 0:00:00]} 15. c4 {[%emt 0:00:00]} Qe7 {[%emt 0:00:00]} 16. Rfe1 {
[%emt 0:00:00]} Be8 {[%emt 0:00:00]} 17. Qc3 {[%emt 0:00:00]} c5 {[%emt 0:00:
00]} 18. d5 {[%emt 0:00:00]} b5 {[%emt 0:00:00]} 19. Rad1 {[%emt 0:00:00]} bxc4
{[%emt 0:00:00]} 20. Qxc4 {[%emt 0:00:00]} Bb5 {[%emt 0:00:00]} 21. Qc2 {
[%emt 0:00:00]} exd5 {[%emt 0:00:00]} 22. exd5 {[%emt 0:00:00]} Qd6 {[%emt 0:
00:00]} 23. a4 {[%emt 0:00:00]} Bd7 {[%emt 0:00:00]} 24. Ne5 {[%emt 0:00:00]}
Re8 {[%emt 0:00:00]} 25. Nxd7 {[%emt 0:00:00]} Qxd7 {[%emt 0:00:00]} 26. Qxc5 {
[%emt 0:00:00]} Qxa4 {[%emt 0:00:00]} 27. h3 {[%emt 0:00:00]} Qb5 {[%emt 0:00:
00]} 28. Rxe8+ {[%emt 0:00:00]} Rxe8 {[%emt 0:00:00]} 29. Qd4 {[%emt 0:00:00]}
a5 {[%emt 0:00:00]} 30. d6 {[%emt 0:00:00]} Qd7 {[%emt 0:00:00]} 31. Qb6 {
[%emt 0:00:00]} a4 {[%emt 0:00:00]} 32. Qc7 {[%emt 0:00:00]} Rd8 {[%emt 0:00:
00]} 33. Ra1 {[%emt 0:00:00]} Qxd6 {[%emt 0:00:00]} 34. Qxd6 {[%emt 0:00:00]}
Rxd6 {[%emt 0:00:00]} 35. Rxa4 {[%emt 0:00:00]} 1/2-1/2

[Event "Gibraltar Masters 18th"]
[Site "Gibraltar"]
[Date "2020.01.24"]
[Round "4.21"]
[White "Navara, David"]
[Black "Buksa, Nataliya"]
[Result "1-0"]
[ECO "E06"]
[WhiteElo "2717"]
[BlackElo "2403"]
[PlyCount "58"]
[EventDate "2020.01.21"]
[EventType "swiss"]
[EventRounds "10"]
[EventCountry "GGB"]
[SourceTitle "BritBase"]
[Source "John Saunders"]
[SourceDate "2021.06.05"]
[SourceVersion "1"]
[SourceVersionDate "2021.06.05"]
[SourceQuality "1"]
[TimeControl "40/100:0"]
[WhiteClock "0:40:13"]
[BlackClock "0:16:59"]

1. Nf3 {[%emt 0:00:00]} d5 {[%emt 0:00:00]} 2. g3 {[%emt 0:00:00]} Nf6 {
[%emt 0:00:00]} 3. Bg2 {[%emt 0:00:00]} e6 {[%emt 0:00:00]} 4. d4 {[%emt 0:00:
00]} Be7 {[%emt 0:00:00]} 5. c4 {[%emt 0:00:00]} O-O {[%emt 0:00:00]} 6. Nc3 {
[%emt 0:00:00]} Nbd7 {[%emt 0:00:00]} 7. Qd3 {[%emt 0:00:00]} b6 {[%emt 0:00:
00]} 8. cxd5 {[%emt 0:00:00]} Nxd5 {[%emt 0:00:00]} 9. O-O {[%emt 0:00:00]} Bb7
{[%emt 0:00:00]} 10. Rd1 {[%emt 0:00:00]} c5 {[%emt 0:00:00]} 11. e4 {[%emt 0:
00:00]} Nxc3 {[%emt 0:00:00]} 12. bxc3 {[%emt 0:00:00]} Rc8 {[%emt 0:00:00]}
13. Bb2 {[%emt 0:00:00]} Qc7 {[%emt 0:00:00]} 14. Rac1 {[%emt 0:00:00]} Rfd8 {
[%emt 0:00:00]} 15. Qe2 {[%emt 0:00:00]} cxd4 {[%emt 0:00:00]} 16. cxd4 {
[%emt 0:00:00]} Qb8 {[%emt 0:00:00]} 17. Bh3 {[%emt 0:00:00]} Rxc1 {[%emt 0:00:
00]} 18. Rxc1 {[%emt 0:00:00]} a6 {[%emt 0:00:00]} 19. d5 {[%emt 0:00:00]} exd5
{[%emt 0:00:00]} 20. e5 {[%emt 0:00:00]} Nc5 {[%emt 0:00:00]} 21. Nd4 {[%emt 0:
00:00]} Re8 {[%emt 0:00:00]} 22. e6 {[%emt 0:00:00]} Bf6 {[%emt 0:00:00]} 23.
exf7+ {[%emt 0:00:00]} Kxf7 {[%emt 0:00:00]} 24. Qh5+ {[%emt 0:00:00]} Kg8 {
[%emt 0:00:00]} 25. Bf5 {[%emt 0:00:00]} h6 {[%emt 0:00:00]} 26. Qg6 {[%emt 0:
00:00]} Qd8 {[%emt 0:00:00]} 27. Qh7+ {[%emt 0:00:00]} Kf8 {[%emt 0:00:00]} 28.
Bg6 {[%emt 0:00:00]} Re4 {[%emt 0:00:00]} 29. Nf5 {[%emt 0:00:00]} Rf4 {
[%emt 0:00:10]} 1-0

[Event "Gibraltar Masters 18th"]
[Site "Gibraltar"]
[Date "2020.01.24"]
[Round "4.22"]
[White "Matlakov, Maxim"]
[Black "Gunina, Valentina"]
[Result "1/2-1/2"]
[ECO "D30"]
[WhiteElo "2698"]
[BlackElo "2461"]
[PlyCount "91"]
[EventDate "2020.01.21"]
[EventType "swiss"]
[EventRounds "10"]
[EventCountry "GGB"]
[SourceTitle "BritBase"]
[Source "John Saunders"]
[SourceDate "2021.06.05"]
[SourceVersion "1"]
[SourceVersionDate "2021.06.05"]
[SourceQuality "1"]
[TimeControl "40/100:0"]
[WhiteClock "0:06:08"]
[BlackClock "0:12:44"]

1. d4 {[%emt 0:00:00]} Nf6 {[%emt 0:00:00]} 2. c4 {[%emt 0:00:00]} e6 {[%emt 0:
00:00]} 3. Nf3 {[%emt 0:00:00]} d5 {[%emt 0:00:00]} 4. Bg5 {[%emt 0:00:00]} c6
{[%emt 0:00:00]} 5. e3 {[%emt 0:00:00]} Nbd7 {[%emt 0:00:00]} 6. Qc2 {[%emt 0:
00:00]} Qa5+ {[%emt 0:00:00]} 7. Nbd2 {[%emt 0:00:00]} h6 {[%emt 0:00:00]} 8.
Bxf6 {[%emt 0:00:00]} Nxf6 {[%emt 0:00:00]} 9. Be2 {[%emt 0:00:00]} Be7 {
[%emt 0:00:00]} 10. O-O {[%emt 0:00:00]} O-O {[%emt 0:00:00]} 11. a4 {[%emt 0:
00:00]} dxc4 {[%emt 0:00:00]} 12. Nxc4 {[%emt 0:00:00]} Qc7 {[%emt 0:00:00]}
13. a5 {[%emt 0:00:00]} Bd7 {[%emt 0:00:00]} 14. Rfc1 {[%emt 0:00:00]} Rac8 {
[%emt 0:00:00]} 15. Nce5 {[%emt 0:00:00]} a6 {[%emt 0:00:00]} 16. Nd3 {[%emt 0:
00:00]} Rcd8 {[%emt 0:00:00]} 17. Nfe5 {[%emt 0:00:00]} Nd5 {[%emt 0:00:00]}
18. Qb3 {[%emt 0:00:00]} Be8 {[%emt 0:00:00]} 19. g3 {[%emt 0:00:00]} Rb8 {
[%emt 0:00:00]} 20. h4 {[%emt 0:00:00]} f6 {[%emt 0:00:00]} 21. Nc4 {[%emt 0:
00:00]} Qd8 {[%emt 0:00:00]} 22. Rd1 {[%emt 0:00:00]} Bf7 {[%emt 0:00:00]} 23.
e4 {[%emt 0:00:00]} Nc7 {[%emt 0:00:00]} 24. Nf4 {[%emt 0:00:00]} g5 {[%emt 0:
00:00]} 25. Ng2 {[%emt 0:00:00]} Nb5 {[%emt 0:00:00]} 26. Qe3 {[%emt 0:00:00]}
Qc7 {[%emt 0:00:00]} 27. hxg5 {[%emt 0:00:00]} hxg5 {[%emt 0:00:00]} 28. e5 {
[%emt 0:00:00]} f5 {[%emt 0:00:00]} 29. Nb6 {[%emt 0:00:00]} Rbd8 {[%emt 0:00:
00]} 30. Rac1 {[%emt 0:00:00]} Qb8 {[%emt 0:00:00]} 31. Ne1 {[%emt 0:00:00]}
Bg6 {[%emt 0:00:00]} 32. Nf3 {[%emt 0:00:00]} f4 {[%emt 0:00:00]} 33. Qb3 {
[%emt 0:00:00]} Nc7 {[%emt 0:00:00]} 34. g4 {[%emt 0:00:00]} Be4 {[%emt 0:00:
00]} 35. Kg2 {[%emt 0:00:00]} Kg7 {[%emt 0:00:00]} 36. Bd3 {[%emt 0:00:00]}
Bxf3+ {[%emt 0:00:00]} 37. Kxf3 {[%emt 0:00:00]} Rh8 {[%emt 0:00:00]} 38. Rh1 {
[%emt 0:00:00]} Rxd4 {[%emt 0:00:00]} 39. Bb1 {[%emt 0:00:00]} Rd2 {[%emt 0:00:
00]} 40. Kg2 {[%emt 0:00:38]} Qd8 {[%emt 0:00:51]} 41. Rxh8 {[%emt 0:00:00]}
Qxh8 {[%emt 0:00:00]} 42. Qf3 {[%emt 0:00:00]} Rxb2 {[%emt 0:00:00]} 43. Nc4 {
[%emt 0:00:00]} Rb4 {[%emt 0:00:00]} 44. Rh1 {[%emt 0:00:00]} Qxh1+ {[%emt 0:
00:00]} 45. Kxh1 {[%emt 0:00:00]} Rxb1+ {[%emt 0:00:00]} 46. Kh2 {[%emt 0:00:
00]} 1/2-1/2

[Event "Gibraltar Masters 18th"]
[Site "Gibraltar"]
[Date "2020.01.24"]
[Round "4.24"]
[White "Batsiashvili, Nino"]
[Black "Saric, Ivan"]
[Result "1/2-1/2"]
[ECO "E91"]
[WhiteElo "2456"]
[BlackElo "2655"]
[PlyCount "85"]
[EventDate "2020.01.21"]
[EventType "swiss"]
[EventRounds "10"]
[EventCountry "GGB"]
[SourceTitle "BritBase"]
[Source "John Saunders"]
[SourceDate "2021.06.05"]
[SourceVersion "1"]
[SourceVersionDate "2021.06.05"]
[SourceQuality "1"]
[TimeControl "40/100:0"]
[WhiteClock "0:50:30"]
[BlackClock "0:59:20"]

1. d4 {[%emt 0:00:00]} Nf6 {[%emt 0:00:00]} 2. c4 {[%emt 0:00:00]} c5 {[%emt 0:
00:00]} 3. d5 {[%emt 0:00:00]} g6 {[%emt 0:00:00]} 4. Nc3 {[%emt 0:00:00]} Bg7
{[%emt 0:00:00]} 5. e4 {[%emt 0:00:00]} d6 {[%emt 0:00:00]} 6. Nf3 {[%emt 0:00:
00]} O-O {[%emt 0:00:00]} 7. Be2 {[%emt 0:00:00]} e6 {[%emt 0:00:00]} 8. O-O {
[%emt 0:00:00]} Re8 {[%emt 0:00:00]} 9. Re1 {[%emt 0:00:00]} exd5 {[%emt 0:00:
00]} 10. exd5 {[%emt 0:00:00]} Ne4 {[%emt 0:00:00]} 11. Nxe4 {[%emt 0:00:00]}
Rxe4 {[%emt 0:00:00]} 12. Bg5 {[%emt 0:00:00]} Bf6 {[%emt 0:00:00]} 13. Bxf6 {
[%emt 0:00:00]} Qxf6 {[%emt 0:00:00]} 14. Qb3 {[%emt 0:00:00]} Na6 {[%emt 0:00:
00]} 15. Bf1 {[%emt 0:00:00]} Rxe1 {[%emt 0:00:00]} 16. Rxe1 {[%emt 0:00:00]}
Nc7 {[%emt 0:00:00]} 17. Nd2 {[%emt 0:00:00]} Qd8 {[%emt 0:00:00]} 18. Ne4 {
[%emt 0:00:00]} f5 {[%emt 0:00:00]} 19. Nd2 {[%emt 0:00:00]} b6 {[%emt 0:00:00]
} 20. Nf3 {[%emt 0:00:00]} Bd7 {[%emt 0:00:00]} 21. Qc3 {[%emt 0:00:00]} Qf8 {
[%emt 0:00:00]} 22. h4 {[%emt 0:00:00]} h6 {[%emt 0:00:00]} 23. Bd3 {[%emt 0:
00:00]} Ne8 {[%emt 0:00:00]} 24. b4 {[%emt 0:00:00]} cxb4 {[%emt 0:00:00]} 25.
Qxb4 {[%emt 0:00:00]} Qf6 {[%emt 0:00:00]} 26. a4 {[%emt 0:00:00]} g5 {[%emt 0:
00:00]} 27. hxg5 {[%emt 0:00:00]} hxg5 {[%emt 0:00:00]} 28. Qd2 {[%emt 0:00:00]
} f4 {[%emt 0:00:00]} 29. Nd4 {[%emt 0:00:00]} Ng7 {[%emt 0:00:00]} 30. Nc6 {
[%emt 0:00:00]} Re8 {[%emt 0:00:00]} 31. a5 {[%emt 0:00:00]} bxa5 {[%emt 0:00:
00]} 32. Qxa5 {[%emt 0:00:00]} Rxe1+ 33. Qxe1 {[%emt 0:00:00]} g4 {[%emt 0:00:
00]} 34. c5 {[%emt 0:00:00]} dxc5 {[%emt 0:00:00]} 35. Qe5 {[%emt 0:00:00]} Ne8
{[%emt 0:00:00]} 36. Qe4 {[%emt 0:00:00]} Bxc6 {[%emt 0:00:00]} 37. dxc6 {
[%emt 0:00:00]} Kf8 {[%emt 0:00:00]} 38. Qd5 {[%emt 0:00:00]} Qd6 {[%emt 0:00:
00]} 39. Qf5+ {[%emt 0:00:41]} Ke7 {[%emt 0:00:00]} 40. Qg5+ {[%emt 0:00:15]}
Kf8 {[%emt 0:00:00]} 41. Qf5+ {[%emt 0:01:31]} Ke7 {[%emt 0:00:00]} 42. Qg5+ {
[%emt 0:00:00]} Kf8 {[%emt 0:00:00]} 43. Qf5+ {[%emt 0:04:05]} 1/2-1/2

[Event "Gibraltar Masters 18th"]
[Site "Gibraltar"]
[Date "2020.01.24"]
[Round "4.25"]
[White "Mammadzada, Gunay"]
[Black "Sasikiran, Krishnan"]
[Result "0-1"]
[ECO "B06"]
[WhiteElo "2455"]
[BlackElo "2648"]
[PlyCount "82"]
[EventDate "2020.01.21"]
[EventType "swiss"]
[EventRounds "10"]
[EventCountry "GGB"]
[SourceTitle "BritBase"]
[Source "John Saunders"]
[SourceDate "2021.06.05"]
[SourceVersion "1"]
[SourceVersionDate "2021.06.05"]
[SourceQuality "1"]
[TimeControl "40/100:0"]
[WhiteClock "0:01:05"]
[BlackClock "0:04:18"]

1. e4 {[%emt 0:00:00]} g6 {[%emt 0:00:00]} 2. d4 {[%emt 0:00:00]} Bg7 {[%emt 0:
00:00]} 3. Nc3 {[%emt 0:00:00]} d6 {[%emt 0:00:00]} 4. Be3 {[%emt 0:00:00]} a6
{[%emt 0:00:00]} 5. Qd2 {[%emt 0:00:00]} b5 {[%emt 0:00:00]} 6. h4 {[%emt 0:00:
00]} h5 {[%emt 0:00:00]} 7. f3 {[%emt 0:00:00]} Nd7 {[%emt 0:00:00]} 8. O-O-O {
[%emt 0:00:00]} Bb7 {[%emt 0:00:00]} 9. Nh3 {[%emt 0:00:00]} Ngf6 {[%emt 0:00:
00]} 10. Ng5 {[%emt 0:00:00]} e6 {[%emt 0:00:00]} 11. Kb1 {[%emt 0:00:00]} Qe7
{[%emt 0:00:00]} 12. Rg1 {[%emt 0:00:00]} Rc8 {[%emt 0:00:00]} 13. Ne2 {
[%emt 0:00:00]} c5 {[%emt 0:00:00]} 14. dxc5 {[%emt 0:00:00]} dxc5 {[%emt 0:00:
00]} 15. c4 {[%emt 0:00:00]} bxc4 {[%emt 0:00:00]} 16. Bf4 {[%emt 0:00:00]} Rc6
{[%emt 0:00:00]} 17. Bd6 {[%emt 0:00:00]} Rxd6 {[%emt 0:00:00]} 18. Qxd6 {
[%emt 0:00:00]} Qxd6 {[%emt 0:00:00]} 19. Rxd6 {[%emt 0:00:00]} Ke7 {[%emt 0:
00:00]} 20. Rd2 {[%emt 0:00:00]} Nb6 {[%emt 0:00:00]} 21. Rc2 {[%emt 0:00:00]}
Nfd7 {[%emt 0:00:00]} 22. g3 {[%emt 0:00:00]} Rb8 {[%emt 0:00:00]} 23. Nc3 {
[%emt 0:00:00]} Bd4 {[%emt 0:00:00]} 24. Rh1 {[%emt 0:00:00]} Ne5 {[%emt 0:00:
00]} 25. Be2 {[%emt 0:00:00]} Bc6 {[%emt 0:00:00]} 26. Ka1 {[%emt 0:00:00]} Na4
{[%emt 0:00:00]} 27. Rb1 {[%emt 0:00:00]} Bb5 {[%emt 0:00:00]} 28. f4 {[%emt 0:
00:00]} Nd3 {[%emt 0:00:00]} 29. Nf3 {[%emt 0:00:00]} Nb4 {[%emt 0:00:00]} 30.
Rcc1 {[%emt 0:00:00]} Be3 {[%emt 0:00:00]} 31. Nxa4 {[%emt 0:00:00]} Bxa4 {
[%emt 0:00:00]} 32. Ne5 {[%emt 0:00:03]} Rd8 {[%emt 0:00:00]} 33. Rxc4 {
[%emt 0:01:01]} Rd2 {[%emt 0:00:00]} 34. Rxb4 {[%emt 0:00:05]} cxb4 {[%emt 0:
00:00]} 35. Bxa6 {[%emt 0:00:00]} Rg2 {[%emt 0:00:00]} 36. Nd3 {[%emt 0:00:00]}
Bd2 {[%emt 0:00:00]} 37. Bc4 {[%emt 0:00:00]} Bc2 {[%emt 0:00:00]} 38. Ne1 {
[%emt 0:00:00]} Bxb1 {[%emt 0:00:00]} 39. Nxg2 {[%emt 0:00:00]} Bxe4 {[%emt 0:
00:00]} 40. Bf1 {[%emt 0:00:00]} Kd6 {[%emt 0:00:00]} 41. a4 {[%emt 0:01:06]}
b3 {[%emt 0:00:00]} 0-1

[Event "Gibraltar Masters 18th"]
[Site "Gibraltar"]
[Date "2020.01.24"]
[Round "4.26"]
[White "Atalik, Ekaterina"]
[Black "Tabatabaei, M.Amin"]
[Result "0-1"]
[ECO "E67"]
[WhiteElo "2450"]
[BlackElo "2638"]
[PlyCount "62"]
[EventDate "2020.01.21"]
[EventType "swiss"]
[EventRounds "10"]
[EventCountry "GGB"]
[SourceTitle "BritBase"]
[Source "John Saunders"]
[SourceDate "2021.06.05"]
[SourceVersion "1"]
[SourceVersionDate "2021.06.05"]
[SourceQuality "1"]
[TimeControl "40/100:0"]
[WhiteClock "0:04:08"]
[BlackClock "0:24:26"]

1. d4 {[%emt 0:00:00]} Nf6 {[%emt 0:00:00]} 2. g3 {[%emt 0:00:00]} g6 {[%emt 0:
00:00]} 3. Bg2 {[%emt 0:00:00]} Bg7 {[%emt 0:00:00]} 4. Nf3 {[%emt 0:00:00]}
O-O {[%emt 0:00:00]} 5. O-O {[%emt 0:00:00]} d6 {[%emt 0:00:00]} 6. b3 {
[%emt 0:00:00]} c6 {[%emt 0:00:00]} 7. Bb2 {[%emt 0:00:00]} Nbd7 {[%emt 0:00:
00]} 8. c4 {[%emt 0:00:00]} Re8 {[%emt 0:00:00]} 9. Nc3 {[%emt 0:00:00]} e5 {
[%emt 0:00:00]} 10. e3 {[%emt 0:00:00]} e4 {[%emt 0:00:00]} 11. Nd2 {[%emt 0:
00:00]} d5 {[%emt 0:00:00]} 12. cxd5 {[%emt 0:00:00]} cxd5 {[%emt 0:00:00]} 13.
Rc1 {[%emt 0:00:00]} a6 {[%emt 0:00:00]} 14. Na4 {[%emt 0:00:00]} Nf8 {[%emt 0:
00:00]} 15. Qc2 {[%emt 0:00:00]} Ne6 {[%emt 0:00:00]} 16. Nc5 {[%emt 0:00:00]}
Ng5 {[%emt 0:00:00]} 17. Na4 {[%emt 0:00:00]} b5 {[%emt 0:00:00]} 18. Nc5 {
[%emt 0:00:00]} h5 {[%emt 0:00:00]} 19. Kh1 {[%emt 0:00:00]} Ra7 {[%emt 0:00:
00]} 20. h4 {[%emt 0:00:00]} Ngh7 {[%emt 0:00:00]} 21. Rce1 {[%emt 0:00:00]}
Bf5 {[%emt 0:00:00]} 22. Qd1 {[%emt 0:00:00]} Rae7 {[%emt 0:00:00]} 23. Nxa6 {
[%emt 0:00:00]} Ng4 {[%emt 0:00:00]} 24. Nc5 {[%emt 0:00:00]} Bf6 {[%emt 0:00:
00]} 25. Nf3 {[%emt 0:00:00]} exf3 {[%emt 0:00:00]} 26. Qxf3 {[%emt 0:00:00]}
Bxh4 {[%emt 0:00:00]} 27. Qxd5 {[%emt 0:00:00]} Qxd5 {[%emt 0:00:00]} 28. Bxd5
{[%emt 0:00:00]} Bxg3 {[%emt 0:00:00]} 29. e4 {[%emt 0:00:00]} Bxf2 {[%emt 0:
00:00]} 30. Rc1 {[%emt 0:00:00]} Nhf6 {[%emt 0:00:00]} 31. Bc6 {[%emt 0:00:00]}
Nxe4 {[%emt 0:00:00]} 0-1